bitfinex/quotes_SOLUSD_20260108
["timestamp","ask_amount","ask_price","bid_price","bid_amount"]
[1767892732642,7.96223985,137.85,137.81,4.05091941]
[1767892733638,7.96223985,137.85,137.81,0.67960646]
[1767892733941,7.96223985,137.85,137.81,4.05091941]
[1767892734244,7.96223985,137.85,137.82,0.67960646]
[1767892734428,7.25446646,137.85,137.82,0.67960646]
[1767892734933,0.4900774,137.84,137.8,4.05091941]
[1767892735136,0.4900774,137.84,137.8,11.30768294]
[1767892735328,0.4900774,137.84,137.8,7.93636999]
[1767892735523,0.4900774,137.84,137.8,11.30768294]
[1767892735724,0.70997234,137.87,137.83,4.05091941]
[1767892735924,4.08128529,137.87,137.83,0.67960646]
[1767892736146,0.4900774,137.86,137.82,0.67960646]
[1767892736336,7.74412944,137.86,137.82,4.05091941]
[1767892736532,7.74412944,137.86,137.82,2.83757955]
[1767892737136,7.74412944,137.86,137.82,10.09337548]
[1767892737339,0.4900774,137.86,137.82,7.93540239]
[1767892737560,7.74393012,137.86,137.82,7.93540239]
[1767892737850,7.74393012,137.86,137.82,10.09337548]
[1767892738149,7.74393012,137.86,137.82,0.67960646]
[1767892738448,9.90190321,137.86,137.82,0.67960646]
[1767892738841,9.90190321,137.86,137.82,7.93541908]
[1767892739246,0.70777339,137.85,137.81,0.67960646]
[1767892739430,9.90190321,137.86,137.82,0.67960646]
[1767892740352,7.74393012,137.86,137.82,0.67960646]
[1767892740754,9.90190321,137.86,137.82,0.67960646]
[1767892742043,9.90190321,137.86,137.81,9.414333]
[1767892742044,0.70777339,137.85,137.81,9.414333]
[1767892742641,0.70777339,137.85,137.8,22.65468291]
[1767892742841,0.49225436,137.84,137.8,22.65468291]
[1767892743050,0.49225436,137.84,137.8,20.49670982]
[1767892743251,0.49225436,137.84,137.8,22.65468291]
[1767892745356,0.49225436,137.84,137.8,23.35047946]
[1767892745560,0.49225436,137.84,137.79,18.14308098]
[1767892745561,0.69792589,137.81,137.77,2.15797309]
[1767892745758,2.15797309,137.79,137.75,0.1]
[1767892745959,13.38216157,137.83,137.76,0.69579655]
[1767892746158,7.25584095,137.82,137.77,0.69579655]
[1767892746462,2.15797309,137.81,137.77,0.69579655]
[1767892747263,7.25689404,137.8,137.77,0.69579655]
[1767892748439,121.70807781,137.84,137.79,0.69579655]
[1767892748663,123.8660509,137.84,137.79,2.85376964]
[1767892748958,2.63057051,137.82,137.78,0.69579655]
[1767892749361,7.25636746,137.81,137.78,0.69579655]
[1767892749547,9.88666457,137.82,137.78,0.69579655]
[1767892749946,7.95537017,137.83,137.79,2.85376964]
[1767892750250,7.92537018,137.83,137.79,2.85376964]
[1767892750969,7.25408431,137.86,137.83,0.69579655]
[1767892751139,7.25408431,137.86,137.83,2.85376964]
[1767892752068,7.25408431,137.86,137.81,20.49598721]
[1767892752069,0.47032438,137.88,137.84,2.85376964]
[1767892752241,20.98870305,137.89,137.84,2.85376964]
[1767892752447,9.88120895,137.88,137.84,0.69579655]
[1767892752862,9.88120895,137.88,137.83,2.15797309]
[1767892753067,25.85494459,137.88,137.83,0.69579655]
[1767892753364,28.01291768,137.88,137.83,2.85376964]
[1767892753567,25.85494459,137.88,137.83,2.85376964]
[1767892753768,28.01291768,137.88,137.83,2.85376964]
[1767892754176,0.47259742,137.86,137.83,9.41326578]
[1767892754488,0.69992489,137.88,137.85,2.15797309]
[1767892754655,0.69992489,137.88,137.84,2.15797309]
[1767892755366,7.95268031,137.88,137.84,2.15797309]
[1767892755567,0.47032438,137.87,137.84,2.15797309]
[1767892755954,0.47032438,137.87,137.82,7.95142332]
[1767892756157,0.47032438,137.87,137.84,2.15797309]
[1767892757472,9.41072851,137.88,137.84,2.85376964]
[1767892757661,9.88105289,137.88,137.84,2.85376964]
[1767892758571,9.88105289,137.88,137.84,0.69579655]
[1767892758886,9.88105289,137.88,137.83,2.15797309]
[1767892758887,0.69992489,137.87,137.83,2.15797309]
[1767892759179,0.69992489,137.87,137.82,18.90936046]
[1767892759180,2.85789798,137.84,137.79,2.15797309]
[1767892759565,0.69992489,137.84,137.8,2.15797309]
[1767892760098,2.82789799,137.84,137.8,0.69579655]
[1767892760268,2.15797309,137.83,137.79,0.69579655]
[1767892760661,9.41326546,137.84,137.79,2.85376964]
[1767892761174,9.41326546,137.84,137.79,10.11117677]
[1767892761982,0.69992489,137.83,137.79,10.11117677]
[1767892762386,7.9553596,137.83,137.79,7.95320368]
[1767892762677,0.69992489,137.83,137.79,10.11117677]
[1767892762882,9.41244306,137.85,137.8,0.69579655]
[1767892763084,0.69992489,137.84,137.8,2.85376964]
[1767892764477,7.95373435,137.86,137.82,0.69579655]
[1767892764685,0.69992489,137.85,137.81,2.85376964]
[1767892765060,0.69992489,137.84,137.8,7.25640016]
[1767892765259,0.69992489,137.83,137.79,10.11096941]
[1767892765484,0.69992489,137.83,137.79,0.69579655]
[1767892765485,2.85789798,137.83,137.79,0.69579655]
[1767892765675,2.15797309,137.82,137.79,0.69579655]
[1767892765984,2.85789798,137.81,137.78,7.25769619]
[1767892766181,2.85789798,137.81,137.78,7.95349274]
[1767892766480,103.1,137.84,137.79,7.95294597]
[1767892766481,2.15797309,137.82,137.79,7.95294597]
[1767892767884,2.15797309,137.83,137.8,0.69579655]
[1767892768781,111.0551032,137.84,137.8,0.69579655]
[1767892769084,2.85789798,137.83,137.8,0.69579655]
[1767892769287,2.85789798,137.83,137.79,7.95294597]
[1767892770676,2.15797309,137.82,137.79,7.95294597]
[1767892770871,2.85789798,137.8,137.77,0.69579655]
[1767892771092,7.25535209,137.83,137.75,14.03579655]
[1767892771093,2.15797309,137.78,137.75,14.03579655]
[1767892771663,2.1279731,137.77,137.75,14.03579655]
[1767892771893,2.09797311,137.77,137.75,21.29511129]
[1767892772069,2.09797311,137.77,137.75,8.05511129]
[1767892773479,2.15797309,137.78,137.75,8.05511129]
[1767892773685,2.1279731,137.78,137.75,8.05511129]
[1767892774271,2.15797309,137.77,137.75,0.79579655]
[1767892774575,2.15797309,137.78,137.75,0.79579655]
[1767892774774,2.15797309,137.77,137.75,0.79579655]
[1767892775177,2.15797309,137.77,137.75,0.1]
[1767892775693,2.85474789,137.76,137.74,0.1]
[1767892775895,2.15797309,137.75,137.74,0.1]
[1767892776073,2.15797309,137.75,137.73,0.1]
[1767892776396,2.85474789,137.74,137.7,21.20693597]
[1767892777878,2.15797309,137.74,137.71,0.70506228]
[1767892778078,2.15797309,137.75,137.71,0.70506228]
[1767892778287,2.85474789,137.75,137.71,0.70506228]
[1767892779178,2.15797309,137.74,137.71,0.70506228]
[1767892779494,7.95642707,137.75,137.69,20.41385018]
[1767892779495,2.15797309,137.72,137.69,0.80506228]
[1767892780189,2.15797309,137.71,137.69,0.1]
[1767892780799,2.85474789,137.71,137.69,0.1]
[1767892781291,2.15797309,137.7,137.67,21.20856824]
[1767892781489,2.15797309,137.7,137.67,7.96856824]
[1767892781990,0.6967748,137.71,137.67,7.96856824]
[1767892781991,7.9584714,137.71,137.67,7.96856824]
[1767892782187,2.15797309,137.72,137.68,0.70506228]
[1767892783588,2.85474789,137.73,137.69,0.70506228]
[1767892783969,0.6967748,137.74,137.7,7.9672264]
[1767892784185,2.85474789,137.74,137.7,7.9672264]
[1767892784969,2.15797309,137.73,137.7,0.70506228]
[1767892785695,2.15797309,137.73,137.69,7.96754606]
[1767892785696,2.85474789,137.73,137.69,7.96754606]
[1767892786677,10.1153401,137.73,137.69,7.96754606]
[1767892786999,2.85474789,137.72,137.68,21.22809839]
[1767892787300,7.26059221,137.73,137.65,1.22943458]
[1767892787301,2.85474789,137.69,137.65,1.22943458]
[1767892787511,2.85474789,137.68,137.65,0.5243723]
[1767892789097,2.15797309,137.67,137.65,0.5243723]
[1767892789376,2.85474789,137.68,137.65,0.5243723]
[1767892790189,2.85474789,137.7,137.66,0.70506228]
[1767892790479,2.85474789,137.7,137.66,7.9689965]
[1767892795511,7.95835343,137.72,137.67,0.70506228]
[1767892795685,111.05747723,137.73,137.67,0.70506228]
[1767892795887,2.15797309,137.74,137.7,0.70506228]
[1767892796188,2.85474789,137.75,137.7,2.86303537]
[1767892796508,2.85474789,137.74,137.69,2.86303537]
[1767892796705,7.26001125,137.75,137.69,2.86303537]
[1767892796706,2.85474789,137.73,137.69,0.70506228]
[1767892797395,2.15797309,137.72,137.69,0.70506228]
[1767892798504,3.37855697,137.72,137.69,0.70506228]
[1767892798707,4.07533177,137.73,137.69,7.96765267]
[1767892799098,11.33605048,137.73,137.69,7.96765267]
[1767892799308,11.33605048,137.73,137.69,0.70506228]
[1767892800902,0.6967748,137.72,137.68,11.3466251]
[1767892801295,11.33668853,137.72,137.68,0.70506228]
[1767892801513,4.07533177,137.7,137.66,0.70506228]
[1767892801714,4.07533177,137.7,137.66,7.96901691]
[1767892802809,25.4141305,137.72,137.67,0.68208689]
[1767892803009,3.37855697,137.74,137.69,4.06064386]
[1767892803314,11.34864347,137.74,137.7,0.68208689]
[1767892804116,3.37855697,137.73,137.7,0.68208689]
[1767892805818,0.6752148,137.7,137.65,1.20291631]
[1767892805993,0.6752148,137.7,137.66,7.94276045]
[1767892806197,38.67042153,137.74,137.67,0.67854401]
[1767892806198,4.05377177,137.72,137.67,0.67854401]
[1767892806514,3.37855697,137.71,137.67,0.67854401]
[1767892806819,0.6752148,137.73,137.65,0.5243723]
[1767892807001,3.37855697,137.67,137.65,0.5243723]
[1767892807209,3.37855697,137.66,137.65,0.5243723]
[1767892807411,3.37855697,137.66,137.64,0.1]
[1767892807608,3.37855697,137.65,137.63,0.2]
[1767892807808,4.05377177,137.65,137.63,0.2]
[1767892808010,4.05377177,137.65,137.62,0.87854401]
[1767892808011,0.6752148,137.64,137.62,0.87854401]
[1767892808223,3.37855697,137.64,137.62,0.87854401]
[1767892808828,7.26445625,137.66,137.6,0.1]
[1767892808829,0.6752148,137.62,137.6,0.1]
[1767892809006,3.37855697,137.61,137.6,1e-08]
[1767892809210,3.37855697,137.61,137.57,8.14745224]
[1767892809798,0.6752148,137.65,137.6,0.67854401]
[1767892810007,32.09263374,137.69,137.63,0.67854401]
[1767892810207,3.37855697,137.66,137.63,0.67854401]
[1767892810407,3.37855697,137.65,137.61,0.67854401]
[1767892810613,3.37855697,137.63,137.58,0.67854401]
[1767892810801,3.37855697,137.63,137.59,0.67854401]
[1767892810996,4.05377177,137.65,137.6,3.37855697]
[1767892811325,3.37855697,137.65,137.61,0.67854401]
[1767892812107,10.64350661,137.65,137.61,0.67854401]
[1767892812528,10.64350661,137.65,137.6,10.64566016]
[1767892812529,3.37855697,137.64,137.6,7.26710319]
[1767892812730,3.37855697,137.64,137.6,7.9456472]
[1767892812926,3.37855697,137.62,137.58,0.67854401]
[1767892813108,3.34855698,137.62,137.58,0.67854401]
[1767892813699,0.6752148,137.63,137.58,4.05710098]
[1767892814011,0.6752148,137.63,137.59,4.05710098]
[1767892814337,4.05377177,137.66,137.61,4.05710098]
[1767892814620,4.05377177,137.65,137.6,3.37855697]
[1767892814828,4.05377177,137.64,137.59,7.94617803]
[1767892815015,4.05377177,137.64,137.59,11.324735]
[1767892815523,3.37855697,137.63,137.59,4.05710098]
[1767892816025,7.94057818,137.64,137.6,4.05710098]
[1767892816232,11.31913515,137.64,137.6,0.67854401]
[1767892817015,11.31912908,137.64,137.59,3.37855697]
[1767892817430,11.31912908,137.64,137.59,4.05710098]
[1767892817741,11.31912908,137.64,137.59,11.32505542]
[1767892818205,0.6752148,137.64,137.6,10.64597865]
[1767892818934,18.16068574,137.66,137.61,11.3239045]
[1767892818935,11.31835832,137.66,137.61,11.3239045]
[1767892819131,4.05377177,137.64,137.59,4.05710098]
[1767892819309,4.05377177,137.64,137.59,11.32475869]
[1767892820033,3.37855697,137.63,137.59,0.67854401]
[1767892820407,3.37855697,137.62,137.59,0.67854401]
[1767892820614,4.05377177,137.63,137.59,0.67854401]
[1767892820834,4.05377177,137.63,137.58,10.64683565]
[1767892821134,4.05377177,137.63,137.58,11.32537966]
[1767892821832,0.6752148,137.62,137.58,11.32537966]
[1767892822132,4.05377177,137.62,137.58,0.67854401]
[1767892823209,4.05377177,137.62,137.58,7.9469709]
[1767892823606,0.6752148,137.62,137.58,7.9469709]
[1767892824334,10.64450687,137.63,137.59,0.67854401]
[1767892824535,0.6752148,137.63,137.59,4.05710098]
[1767892824718,4.05377177,137.65,137.6,4.05710098]
[1767892824916,0.6752148,137.64,137.6,4.05710098]
[1767892825421,11.31913581,137.64,137.6,0.67854401]
[1767892825620,11.31913581,137.64,137.6,4.05710098]
[1767892826019,0.6752148,137.63,137.6,7.2673477]
[1767892827037,0.6752148,137.63,137.59,11.32489408]
[1767892827237,0.6752148,137.63,137.59,0.67854401]
[1767892827415,0.6752148,137.63,137.58,20.52843191]
[1767892827416,7.94160049,137.62,137.58,4.05710098]
[1767892827832,0.6752148,137.62,137.59,3.37855697]
[1767892828036,0.6752148,137.62,137.58,7.94698214]
[1767892828246,0.6752148,137.62,137.58,0.67854401]
[1767892828438,0.6752148,137.62,137.58,11.32547674]
[1767892828738,0.6752148,137.62,137.59,3.37855697]
[1767892828938,7.26609133,137.63,137.59,4.05710098]
[1767892829523,7.94130613,137.63,137.59,4.05710098]
[1767892829922,7.94077242,137.64,137.6,4.05710098]
[1767892830231,0.6752148,137.64,137.6,4.05710098]
[1767892830552,36.3176087,137.68,137.6,4.05710098]
[1767892830553,0.6752148,137.71,137.64,0.67854401]
[1767892830717,0.6752148,137.71,137.63,3.37855697]
[1767892830718,7.93685157,137.71,137.67,3.37855697]
[1767892830917,11.31540854,137.71,137.66,4.05710098]
[1767892831137,7.93685157,137.71,137.67,3.37855697]
[1767892831352,7.93685157,137.71,137.67,4.05710098]
[1767892831719,7.93685157,137.71,137.67,3.37855697]
[1767892832337,7.93685157,137.71,137.67,4.05503708]
[1767892833041,7.93685157,137.71,137.67,11.31873711]
[1767892833545,7.93685157,137.71,137.67,4.05503708]
[1767892835421,11.31540854,137.71,137.67,4.05503708]
[1767892835631,0.65470933,137.7,137.65,0.67648011]
[1767892835839,0.65470933,137.69,137.65,7.94106777]
[1767892836142,0.65470933,137.69,137.65,11.31962474]
[1767892836655,0.65470933,137.69,137.65,4.05503708]
[1767892836940,0.65470933,137.66,137.62,11.32141046]
[1767892837242,0.65470933,137.66,137.62,0.67648011]
[1767892837243,3.37855697,137.65,137.62,0.67648011]
[1767892837640,3.37855697,137.64,137.6,13.93648011]
[1767892837842,3.37855697,137.64,137.6,21.20372126]
[1767892838422,4.0332663,137.65,137.61,0.67648011]
[1767892838646,10.07643673,137.65,137.61,10.09820751]
[1767892838948,16.6861967,137.66,137.62,0.67648011]
[1767892840741,0.65470933,137.64,137.6,20.52730494]
[1767892841035,0.65470933,137.64,137.6,21.20378505]
[1767892841247,0.65470933,137.64,137.6,17.36551245]
[1767892841855,17.34156357,137.65,137.6,7.94378505]
[1767892842033,17.34156357,137.65,137.6,17.36551245]
[1767892842435,10.07643673,137.64,137.6,7.94378505]
[1767892843538,17.3419201,137.64,137.6,0.67648011]
[1767892843925,7.9201927,137.64,137.6,17.36550947]
[1767892845144,7.9201927,137.64,137.6,7.94378207]
[1767892845448,7.9201927,137.64,137.6,17.36550947]
[1767892845635,10.07643673,137.62,137.58,0.67648011]
[1767892846318,9.4217274,137.63,137.59,0.67648011]
[1767892846520,10.07643673,137.63,137.59,0.67648011]
[1767892847945,17.34239652,137.63,137.59,0.67648011]
[1767892849646,0.65470933,137.62,137.59,0.67648011]
[1767892849854,0.65470933,137.62,137.58,17.36639865]
[1767892850547,7.92131954,137.62,137.58,10.09820751]
[1767892851135,7.92131954,137.62,137.58,7.94488725]
[1767892853056,17.34096509,137.66,137.62,10.09820751]
[1767892853351,7.26452836,137.66,137.63,0.67648011]
[1767892853760,7.91923769,137.66,137.62,10.09820751]
[1767892854059,17.34096509,137.66,137.62,0.67648011]
[1767892854456,10.07643673,137.66,137.62,7.94283391]
[1767892854628,17.34072126,137.66,137.62,7.94283391]
[1767892855259,17.34072126,137.66,137.62,0.67648011]
[1767892855958,7.91899386,137.66,137.62,7.94276214]
[1767892856255,17.34072126,137.66,137.62,7.94276214]
[1767892856555,17.33984992,137.68,137.64,0.67648011]
[1767892856933,17.33984992,137.68,137.64,10.09820751]
[1767892857128,17.33984992,137.68,137.64,0.67648011]
[1767892857529,7.91812252,137.68,137.64,0.67648011]
[1767892857841,17.33984992,137.68,137.64,0.67648011]
[1767892858861,7.26272488,137.69,137.65,0.67648011]
[1767892859066,0.65470933,137.71,137.67,10.09820751]
[1767892859356,7.26133193,137.72,137.68,10.09820751]
[1767892859535,7.26133193,137.72,137.68,17.36135118]
[1767892859739,7.26027815,137.74,137.7,0.67648011]
[1767892859939,0.65470933,137.75,137.71,10.09820751]
[1767892859940,7.91442513,137.75,137.71,10.09820751]
[1767892860467,0.65470933,137.76,137.72,10.09820751]
[1767892860753,6.44270471,137.76,137.72,0.67648011]
[1767892861249,0.65470933,137.75,137.71,5.78799538]
[1767892861546,0.65470933,137.73,137.69,6.46447549]
[1767892861756,7.91576445,137.73,137.69,6.46447549]
[1767892862130,6.44270471,137.72,137.67,19.72447549]
[1767892862754,6.44270471,137.72,137.67,6.46447549]
[1767892863244,0.65470933,137.72,137.68,6.45744696]
[1767892864052,7.26105512,137.73,137.69,6.45744696]
[1767892864253,7.26028184,137.74,137.7,6.45744696]
[1767892864556,13.73599163,137.74,137.7,0.66945158]
[1767892865929,13.73599163,137.74,137.7,6.45744696]
[1767892866126,0.70903633,137.73,137.69,6.44980717]
[1767892867366,0.70903633,137.71,137.66,7.92598685]
[1767892867548,6.49703171,137.71,137.66,13.71398223]
[1767892867858,6.49703171,137.71,137.67,0.66181179]
[1767892868654,7.47101441,137.71,137.67,0.66181179]
[1767892868857,13.25900979,137.71,137.67,0.66181179]
[1767892869937,0.20903633,137.71,137.67,13.71347279]
[1767892870761,0.20903633,137.71,137.67,13.051661]
[1767892870940,26.30867118,137.73,137.69,0.66181179]
[1767892871745,27.01291158,137.73,137.69,0.66181179]
[1767892872155,19.75223578,137.73,137.69,7.92440975]
[1767892872435,7.26029017,137.74,137.71,0.66181179]
[1767892872630,13.04723659,137.76,137.72,0.66181179]
[1767892872858,7.25924121,137.76,137.73,0.66181179]
[1767892873235,7.25924121,137.76,137.73,6.44980717]
[1767892873734,5.78799538,137.78,137.73,5.78799538]
[1767892873935,5.78799538,137.78,137.74,0.66181179]
[1767892874133,5.78799538,137.78,137.73,5.78799538]
[1767892874134,5.97068574,137.78,137.73,13.04844371]
[1767892874760,0.18269036,137.78,137.73,13.04844371]
[1767892874950,5.97068574,137.78,137.73,13.04844371]
[1767892876150,13.22889088,137.78,137.73,13.7102555]
[1767892876353,0.18269036,137.78,137.74,6.44980717]
[1767892876559,6.49703171,137.79,137.74,0.66181179]
[1767892876868,6.49703171,137.79,137.74,6.44980717]
[1767892877362,5.78799538,137.78,137.74,0.66181179]
[1767892877563,5.97068574,137.78,137.74,13.92181179]
[1767892877747,5.78799538,137.77,137.74,13.26]
[1767892878762,5.78799538,137.77,137.73,21.18223948]
[1767892878944,13.22903033,137.78,137.73,26.97023486]
[1767892879141,13.22903033,137.78,137.74,0.66181179]
[1767892880562,0.59872514,137.74,137.69,0.28432314]
[1767892880765,0.59872514,137.74,137.7,13.26]
[1767892881059,5.89199263,137.73,137.7,13.26]
[1767892881263,0.59377786,137.72,137.66,0.66181179]
[1767892881453,0.49377786,137.71,137.67,13.26]
[1767892881657,0.49377786,137.71,137.67,7.26345373]
[1767892881658,0.099,137.7,137.67,7.26345373]
[1767892881839,0.099,137.7,137.67,20.52345373]
[1767892882045,5.78799538,137.71,137.67,20.52345373]
[1767892882243,5.88699538,137.71,137.67,20.52345373]
[1767892882462,0.099,137.71,137.67,20.52345373]
[1767892882666,2.26168643,137.71,137.67,20.52345373]
[1767892884471,5.89217071,137.71,137.67,20.52345373]
[1767892884649,5.79317071,137.71,137.68,0.66181179]
[1767892885153,13.05441993,137.72,137.68,0.66181179]
[1767892885747,7.26124922,137.72,137.69,5.79317071]
[1767892886865,0.28432314,137.76,137.71,6.4549825]
[1767892886866,7.25900116,137.76,137.71,6.4549825]
[1767892887249,0.65618367,137.74,137.64,0.72653298]
[1767892887582,0.10457183,137.72,137.67,5.79317071]
[1767892887769,7.26163677,137.71,137.67,5.79317071]
[1767892887974,7.26163677,137.71,137.65,13.26]
[1767892888150,7.91230433,137.71,137.67,5.79317071]
[1767892888477,7.91230433,137.71,137.67,13.05685989]
[1767892888648,7.36028657,137.72,137.67,13.05685989]
[1767892889258,7.36028657,137.72,137.67,6.4549825]
[1767892889488,7.36028657,137.72,137.63,0.66181179]
[1767892889489,0.11003278,137.68,137.63,0.66181179]
[1767892889652,13.16656888,137.68,137.63,26.9805156]
[1767892889851,0.11003278,137.68,137.64,5.79317071]
[1767892890077,7.36186506,137.69,137.64,6.4549825]
[1767892890379,7.36186506,137.69,137.64,19.7149825]
[1767892890562,13.15503577,137.69,137.64,19.7149825]
[1767892891173,13.15503577,137.69,137.64,26.98007643]
[1767892891363,7.36186506,137.69,137.64,26.98007643]
[1767892891881,13.15503577,137.69,137.64,26.98007643]
[1767892892299,31.31176465,137.69,137.64,19.7149825]
[1767892892455,6.44383827,137.66,137.62,0.69082139]
[1767892892653,6.38383829,137.66,137.62,0.69082139]
[1767892893177,13.64832034,137.66,137.62,0.69082139]
[1767892893888,7.85514963,137.66,137.62,0.69082139]
[1767892894051,7.26448205,137.66,137.62,13.75026426]
[1767892894256,13.05716292,137.67,137.62,13.75026426]
[1767892894480,7.26399221,137.67,137.62,27.01026426]
[1767892894773,13.05716292,137.67,137.63,0.69082139]
[1767892897179,31.31552952,137.67,137.63,0.69082139]
[1767892897677,25.52235881,137.67,137.63,0.69082139]
[1767892897875,31.31552952,137.67,137.63,0.69082139]
[1767892898271,31.31552952,137.67,137.61,19.7439921]
[1767892898478,0.59678369,137.66,137.62,0.69082139]
[1767892898656,0.10397783,137.65,137.61,19.05317071]
[1767892899162,0.59185564,137.64,137.61,19.05317071]
[1767892899578,7.26500719,137.65,137.61,19.05317071]
[1767892899883,7.36400719,137.65,137.61,26.32001523]
[1767892900055,7.26500719,137.65,137.62,6.4839921]
[1767892900990,7.36327429,137.66,137.62,6.4839921]
[1767892901470,7.36327429,137.66,137.6,13.26]
[1767892901471,0.59678369,137.65,137.6,13.26]
[1767892901677,0.59678369,137.65,137.6,19.7439921]
[1767892902466,0.59678369,137.65,137.61,5.79317071]
[1767892902697,0.59678369,137.65,137.61,6.4839921]
[1767892902862,0.59678369,137.65,137.61,0.69082139]
[1767892903069,7.26532984,137.64,137.6,13.26]
[1767892903268,7.36930767,137.64,137.61,5.79317071]
[1767892903566,7.36399523,137.65,137.6,21.21814258]
[1767892903750,7.26499523,137.65,137.62,5.79317071]
[1767892904475,7.26499523,137.65,137.61,0.69082139]
[1767892904678,7.86177892,137.65,137.61,6.4839921]
[1767892904974,26.02677184,137.66,137.61,5.79317071]
[1767892905156,0.099,137.65,137.61,6.4839921]
[1767892905779,31.81994255,137.66,137.61,6.4839921]
[1767892905978,26.02677184,137.66,137.62,6.4839921]
[1767892906181,7.26427429,137.66,137.63,0.69082139]
[1767892906374,0.099,137.71,137.66,0.69082139]
[1767892906580,2.16317173,137.68,137.64,13.26]
[1767892906788,7.26321905,137.68,137.64,13.95082139]
[1767892906974,7.26321905,137.68,137.64,16.11399312]
[1767892908187,7.26321905,137.68,137.64,13.95082139]
[1767892908386,7.26321905,137.68,137.64,16.11399312]
[1767892909591,7.26321905,137.68,137.65,2.85399312]
[1767892909791,2.76498354,137.71,137.66,2.85399312]
[1767892909986,0.60181181,137.71,137.66,2.85399312]
[1767892910289,2.76498354,137.71,137.66,2.85399312]
[1767892910765,7.26235138,137.7,137.66,2.85399312]
[1767892912596,7.26235138,137.7,137.66,0.69082139]
[1767892912795,7.26235138,137.7,137.66,2.85399312]
[1767892913190,7.26235138,137.7,137.66,0.69082139]
[1767892914001,0.59678369,137.69,137.65,9.42775859]
[1767892914190,0.10397783,137.68,137.64,13.26]
[1767892914500,0.10397783,137.68,137.64,13.95082139]
[1767892914679,0.10397783,137.68,137.64,16.11399312]
[1767892916191,0.59185564,137.67,137.63,2.16317173]
[1767892916401,9.42674218,137.68,137.64,13.15004383]
[1767892916577,9.52574218,137.68,137.64,13.15004383]
[1767892917594,9.52574218,137.68,137.64,13.84086522]
[1767892917779,7.36257045,137.68,137.64,13.84086522]
[1767892918605,25.52061809,137.68,137.64,13.84086522]
[1767892920591,0.099,137.68,137.64,13.84086522]
[1767892922809,7.36221905,137.68,137.64,13.84086522]
[1767892923012,0.49185564,137.7,137.65,4.04404098]
[1767892923598,0.099,137.69,137.65,4.04404098]
[1767892926285,7.26321905,137.68,137.65,0.6630905]
[1767892926486,7.36189868,137.69,137.65,4.04404098]
[1767892927788,7.36189868,137.69,137.65,17.30404098]
[1767892928205,7.26289868,137.69,137.66,0.6630905]
[1767892928610,7.26289868,137.69,137.66,13.9230905]
[1767892929029,7.36136916,137.7,137.66,13.9230905]
[1767892929324,7.26236916,137.7,137.67,0.6630905]
[1767892929813,7.36136916,137.7,137.66,13.9230905]
[1767892930212,10.74231964,137.7,137.66,13.9230905]
[1767892930512,3.48383975,137.68,137.64,0.6630905]
[1767892930712,0.10288927,137.68,137.64,13.9230905]
[1767892930912,25.41777947,137.7,137.66,0.6630905]
[1767892931103,7.26236916,137.7,137.68,0.6630905]
[1767892931790,0.49185564,137.74,137.7,0.66303695]
[1767892931992,7.26026814,137.74,137.71,3.38095048]
[1767892932410,7.26026814,137.74,137.7,17.30398743]
[1767892932990,110.4587761,137.75,137.71,0.66303695]
[1767892933198,7.3587761,137.75,137.71,4.04398743]
[1767892933519,7.3587761,137.75,137.71,17.30398743]
[1767892933717,7.2597761,137.75,137.72,0.66303695]
[1767892934914,29.47155221,137.75,137.71,13.26]
[1767892936816,29.47155221,137.75,137.71,13.92303695]
[1767892937721,4.06180732,137.73,137.69,0.66303695]
[1767892938799,0.68085684,137.73,137.69,4.04398743]
[1767892939510,7.26090875,137.73,137.7,0.66303695]
[1767892939708,110.36027755,137.74,137.71,0.66303695]
[1767892939915,103.1,137.74,137.71,0.66303695]
[1767892940119,103.1,137.74,137.72,0.66303695]
[1767892940696,0.56829539,137.73,137.69,3.38095048]
[1767892940914,0.56829539,137.73,137.69,11.30662805]
[1767892941518,0.56829539,137.73,137.7,0.66303695]
[1767892941823,110.36014314,137.74,137.7,4.04398743]
[1767892942618,110.36014314,137.74,137.71,4.04398743]
[1767892944807,36.29116661,137.78,137.69,7.26264062]
[1767892944808,0.68200531,137.83,137.74,0.66303695]
[1767892945109,6.25531451,137.83,137.79,4.04398743]
[1767892945293,6.93731982,137.83,137.79,4.04398743]
[1767892945708,10.3182703,137.83,137.79,0.66303695]
[1767892946310,6.93731982,137.83,137.79,0.66303695]
[1767892946824,10.3182703,137.83,137.79,0.66303695]
[1767892947126,6.93731982,137.83,137.79,0.66303695]
[1767892947328,10.3182703,137.83,137.79,0.66303695]
[1767892948222,10.3182703,137.83,137.78,7.92091551]
[1767892948423,0.68200531,137.83,137.79,0.66303695]
[1767892948928,20.51490867,137.84,137.8,0.66303695]
[1767892949133,0.2,137.87,137.84,0.66303695]
[1767892949429,0.2,137.87,137.85,7.25426187]
[1767892949728,0.2,137.87,137.84,10.63556238]
[1767892950434,0.2,137.87,137.83,3.38095048]
[1767892950930,0.2,137.87,137.84,3.38095048]
[1767892951104,0.2,137.87,137.82,18.13847003]
[1767892951430,0.2,137.87,137.84,0.62777321]
[1767892951939,0.2,137.87,137.84,11.26348611]
[1767892952126,0.68200531,137.86,137.82,3.38095048]